fUSD/lending_fUSD_20240630
["ID","MTS","AMOUNT","RATE_DAILY","PERIOD"]
[330689240,1719711068774,-500.0,0.00014136,3]
[330689241,1719711068784,-581.58,0.00014136,3]
[330689242,1719711068793,-500.0,0.00014136,3]
[330689243,1719711068803,-719.02,0.00014136,3]
[330689244,1719711068812,-500.0,0.00014136,3]
[330689245,1719711068821,-500.0,0.00014136,3]
[330689246,1719711068831,-680.73,0.00014136,3]
[330689247,1719711068840,-1466.68,0.00014136,3]
[330689248,1719711068849,-500.0,0.00014136,3]
[330689249,1719711068858,-1052.34,0.00014136,3]
[330689250,1719711068868,-500.0,0.00014136,3]
[330689251,1719711068877,-8291.65,0.00014136,3]
[330689252,1719711068887,-500.0,0.00014136,3]
[330689253,1719711068897,-500.0,0.00014136,3]
[330689254,1719711068908,-500.0,0.00014136,3]
[330689255,1719711068917,-500.0,0.00014136,3]
[330689256,1719711068927,-500.0,0.00014136,3]
[330689257,1719711068936,-857.65,0.00014136,3]
[330689258,1719711068945,-500.0,0.00014136,3]
[330689259,1719711068955,-733.86,0.00014136,3]
[330689260,1719711068965,-2739.13,0.00014136,3]
[330689261,1719711068974,-500.0,0.00014136,3]
[330689262,1719711068984,-500.0,0.00014136,3]
[330689263,1719711068993,-500.0,0.00014136,3]
[330689264,1719711069002,-1160.63,0.00014136,3]
[330689265,1719711069011,-1644.16,0.00014136,3]
[330689266,1719711069021,-709.63,0.00014136,3]
[330689267,1719711069030,-500.0,0.00014136,3]
[330689268,1719711069039,-500.0,0.00014136,3]
[330689269,1719711069048,-500.0,0.00014136,3]
[330689270,1719711069058,-688.73,0.00014136,3]
[330689271,1719711069068,-500.0,0.00014136,3]
[330689272,1719711069079,-500.0,0.00014136,3]
[330689273,1719711069090,-500.0,0.00014136,3]
[330689274,1719711069100,-515.33,0.00014136,3]
[330689275,1719711069109,-1136.46,0.00014136,3]
[330689276,1719711069119,-952.21,0.00014136,3]
[330689277,1719711069128,-651.27,0.00014136,3]
[330689278,1719711069137,-1657.35,0.00014136,3]
[330689279,1719711069147,-1024.41,0.00014136,3]
[330689280,1719711069157,-500.0,0.00014136,3]
[330689281,1719711069167,-500.0,0.00014136,3]
[330689282,1719711069176,-569.76,0.00014136,3]
[330689283,1719711069186,-666.12,0.00014136,3]
[330689284,1719711069195,-1272.44,0.00014136,3]
[330689285,1719711069204,-500.0,0.00014136,3]
[330689286,1719711069213,-500.0,0.00014136,3]
[330689287,1719711069222,-500.0,0.00014136,3]
[330689288,1719711069232,-990.57,0.00014136,3]
[330689289,1719711069241,-500.0,0.00014136,3]
[330689290,1719711069250,-500.0,0.00014136,3]
[330689291,1719711069259,-2333.23,0.00014136,3]
[330689292,1719711069269,-973.19,0.00014136,3]
[330689293,1719711069279,-500.0,0.00014136,3]
[330689294,1719711069288,-2346.07,0.00014136,3]
[330689295,1719711069297,-737.96,0.00014136,3]
[330689296,1719711069306,-681.0,0.00014136,3]
[330689297,1719711069316,-500.0,0.00014136,3]
[330689298,1719711069325,-500.0,0.00014136,3]
[330689299,1719711069334,-500.0,0.00014136,3]
[330689300,1719711069344,-500.0,0.00014136,3]
[330689301,1719711069353,-2093.74,0.00014136,3]
[330689302,1719711069363,-500.0,0.00014136,3]
[330689303,1719711069372,-741.16,0.00014136,3]
[330689304,1719711069381,-517.54,0.00014136,3]
[330689305,1719711069390,-500.0,0.00014136,3]
[330689306,1719711069400,-1584.98,0.00014136,3]
[330689307,1719711069410,-17519.3,0.00014136,3]
[330689308,1719711069419,-2255.93,0.00014136,3]
[330689309,1719711069428,-500.0,0.00014136,3]
[330689310,1719711069437,-500.0,0.00014136,3]
[330689311,1719711069447,-2373.06,0.00014136,3]
[330689312,1719711069456,-733.6,0.00014136,3]
[330689313,1719711069465,-730.7,0.00014136,3]
[330689314,1719711069474,-1366.43,0.00014136,3]
[330689315,1719711069484,-500.0,0.00014136,3]
[330689316,1719711069493,-1233.97,0.00014136,3]
[330689317,1719711069503,-500.0,0.00014136,3]
[330689318,1719711069512,-973.08,0.00014136,3]
[330689319,1719711069522,-500.0,0.00014136,3]
[330689320,1719711069531,-500.0,0.00014136,3]
[330689321,1719711069540,-500.0,0.00014136,3]
[330689322,1719711069549,-565.49,0.00014136,3]
[330689323,1719711069559,-1453.68,0.00014136,3]
[330689324,1719711069567,-500.0,0.00014136,3]
[330689325,1719711069576,-1103.39,0.00014136,3]
[330689326,1719711069585,-500.0,0.00014136,3]
[330689327,1719711069596,-500.0,0.00014136,3]
[330689328,1719711069609,-500.0,0.00014136,3]
[330689329,1719711069618,-2749.71,0.00014136,3]
[330689330,1719711069627,-500.0,0.00014136,3]
[330689331,1719711069637,-1470.04,0.00014136,3]
[330689332,1719711069646,-500.0,0.00014136,3]
[330689333,1719711069658,-500.0,0.00014136,3]
[330689334,1719711069667,-1000.06,0.00014136,3]
[330689335,1719711069679,-789.6,0.00014136,3]
[330689336,1719711069692,-3074.88,0.00014136,3]
[330689337,1719711069701,-587.36,0.00014136,3]
[330689338,1719711069710,-1717.46,0.00014136,3]
[330689339,1719711069719,-553.57,0.00014136,3]
[330689340,1719711069727,-538.78,0.00014136,3]
[330689341,1719711069736,-734.77,0.00014136,3]
[330689342,1719711069745,-4030.58,0.00014136,3]
[330689343,1719711069754,-872.59,0.00014136,3]
[330689344,1719711069763,-505.1,0.00014136,3]
[330689345,1719711069773,-1619.26,0.00014136,3]
[330689346,1719711069782,-500.0,0.00014136,3]
[330689347,1719711069792,-500.0,0.00014136,3]
[330689348,1719711069801,-1040.75,0.00014136,3]
[330689349,1719711069811,-1019.73,0.00014136,3]
[330689350,1719711069820,-500.0,0.00014136,3]
[330689351,1719711069830,-500.0,0.00014136,3]
[330689352,1719711069839,-500.0,0.00014136,3]
[330689353,1719711069848,-917.98,0.00014136,3]
[330689354,1719711069858,-500.0,0.00014136,3]
[330689355,1719711069867,-544.73,0.00014136,3]
[330689356,1719711069877,-2026.5,0.00014136,3]
[330689357,1719711069886,-500.0,0.00014136,3]
[330689358,1719711069898,-1434.62,0.00014136,3]
[330689359,1719711069912,-914.82,0.00014136,3]
[330689360,1719711069921,-2283.96,0.00014136,3]
[330689361,1719711069931,-853.8,0.00014136,3]
[330689362,1719711069940,-806.6,0.00014136,3]
[330689363,1719711069950,-500.0,0.00014136,3]
[330689364,1719711069960,-990.19,0.00014136,3]
[330689365,1719711069969,-527.87,0.00014136,3]
[330689366,1719711069978,-500.0,0.00014136,3]
[330689367,1719711069987,-555.08,0.00014136,3]
[330689368,1719711069996,-500.0,0.00014136,3]
[330689369,1719711070005,-2932.06,0.00014136,3]
[330689370,1719711070015,-500.0,0.00014136,3]
[330689371,1719711070024,-674.79,0.00014136,3]
[330689372,1719711070033,-1092.71,0.00014136,3]
[330689373,1719711070042,-1430.53,0.00014136,3]
[330689374,1719711070052,-500.0,0.00014136,3]
[330689375,1719711070061,-866.85,0.00014136,3]
[330689376,1719711070071,-500.0,0.00014136,3]
[330689377,1719711070080,-500.0,0.00014136,3]
[330689378,1719711070089,-668.37,0.00014136,3]
[330689379,1719711070099,-726.78,0.00014136,3]
[330689380,1719711070108,-500.0,0.00014136,3]
[330689381,1719711070118,-500.0,0.00014136,3]
[330689382,1719711070127,-804.46,0.00014136,3]
[330689383,1719711070136,-426.8795564,0.00014136,3]
[330689384,1719711070145,-962.38,0.00014136,3]
[330689385,1719711070156,-623.27,0.00014136,3]
[330689386,1719711070165,-500.0,0.00014136,3]
[330689387,1719711070174,-1151.96,0.00014136,3]
[330689388,1719711070184,-1231.81,0.00014136,3]
[330689389,1719711070192,-572.24,0.00014136,3]
[330689390,1719711070202,-500.0,0.00014136,3]
[330689391,1719711070211,-500.0,0.00014136,3]
[330689392,1719711070220,-500.0,0.00014136,3]
[330689393,1719711070230,-789.18,0.00014136,3]
[330689394,1719711070239,-500.0,0.00014136,3]
[330689395,1719711070249,-500.0,0.00014136,3]
[330689396,1719711070258,-2872.85,0.00014136,3]
[330689397,1719711070268,-1003.38,0.00014136,3]
[330689398,1719711070277,-500.0,0.00014136,3]
[330689399,1719711070286,-300.0,0.0001418,2]
[330689400,1719711070295,-77284.1853666,0.00014236,2]
[330689401,1719711070305,-3583.925039,0.00014236,2]
[330689402,1719711070315,-1246.57,0.00014246,3]
[330689403,1719711070325,-2620.27,0.00014246,3]
[330689404,1719711070335,-771.15,0.00014246,3]
[330689405,1719711070344,-2420.64,0.00014246,3]
[330689406,1719711070354,-1036.09,0.00014246,3]
[330689407,1719711070363,-2486.42,0.00014246,3]
[330689408,1719711070373,-1825.95,0.00014246,3]
[330689409,1719711070383,-636.66228343,0.00014246,3]
[330689410,1719711070392,-572.1052206,0.00014246,3]
[330689411,1719711070404,-500.0,0.00014246,3]
[330689412,1719711070413,-500.0,0.00014246,3]
[330689413,1719711070423,-3712.27,0.00014246,3]
[330689414,1719711070432,-500.0,0.00014246,3]
[330689415,1719711070441,-500.0,0.00014246,3]
[330689416,1719711070451,-500.0,0.00014246,3]
[330689417,1719711070461,-500.0,0.00014246,3]
[330689418,1719711070471,-500.0,0.00014246,3]
[330689419,1719711070481,-500.0,0.00014246,3]
[330689420,1719711070490,-500.0,0.00014246,3]
[330689421,1719711070500,-2737.34,0.00014246,3]
[330689422,1719711070510,-1116.78,0.00014246,3]
[330689423,1719711070519,-500.0,0.00014246,3]
[330689424,1719711070528,-408.75371924,0.00014246,3]
[330689425,1719711070538,-500.0,0.00014246,3]
[330689426,1719711070547,-500.0,0.00014246,3]
[330689427,1719711070661,-500.0,0.00014246,3]
[330689428,1719711070681,-2164.74,0.00014246,3]
[330689429,1719711070693,-500.0,0.00014246,3]
[330689430,1719711070703,-500.0,0.00014246,3]
[330689431,1719711070713,-500.0,0.00014246,3]
[330689432,1719711070723,-500.0,0.00014246,3]
[330689433,1719711070733,-500.0,0.00014246,3]
[330689434,1719711070743,-1569.95,0.00014246,3]
[330689435,1719711070752,-500.0,0.00014246,3]
[330689436,1719711070762,-500.0,0.00014246,3]
[330689437,1719711070771,-4687.88,0.00014246,3]
[330689438,1719711070782,-500.0,0.00014246,3]
[330689439,1719711070792,-500.0,0.00014246,3]
[330689440,1719711070801,-500.0,0.00014246,3]
[330689441,1719711070811,-500.0,0.00014246,3]
[330689442,1719711070821,-500.0,0.00014246,3]
[330689443,1719711070831,-684.17,0.00014246,3]
[330689444,1719711070840,-500.0,0.00014246,3]
[330689445,1719711070851,-713.16,0.00014246,3]
[330689446,1719711070860,-500.0,0.00014246,3]
[330689447,1719711070870,-500.0,0.00014246,3]
[330689448,1719711070880,-500.0,0.00014246,3]
[330689449,1719711070891,-500.0,0.00014246,3]
[330689450,1719711070900,-1295.72,0.00014246,3]
[330689451,1719711070912,-500.0,0.00014246,3]
[330689452,1719711070921,-500.0,0.00014246,3]
[330689453,1719711070931,-500.0,0.00014246,3]
[330689454,1719711070941,-1900.6,0.00014246,3]
[330689455,1719711070951,-500.0,0.00014246,3]
[330689456,1719711070961,-500.0,0.00014246,3]
[330689457,1719711070972,-710.78,0.00014246,3]
[330689458,1719711070986,-500.0,0.00014246,3]
[330689459,1719711070995,-500.0,0.00014246,3]
[330689460,1719711071005,-500.0,0.00014246,3]
[330689461,1719711071014,-1699.63,0.00014246,3]
[330689462,1719711071024,-500.0,0.00014246,3]
[330689463,1719711071035,-500.0,0.00014246,3]
[330689464,1719711071044,-500.0,0.00014246,3]
[330689465,1719711071053,-601.07,0.00014246,3]
[330689466,1719711071063,-1066.9,0.00014246,3]
[330689467,1719711071073,-500.0,0.00014246,3]
[330689468,1719711071084,-500.0,0.00014246,3]
[330689469,1719711071093,-832.37,0.00014246,3]
[330689470,1719711071103,-500.0,0.00014246,3]
[330689471,1719711071113,-500.0,0.00014246,3]
[330689472,1719711071123,-1071.66,0.00014246,3]
[330689473,1719711071133,-315.51101351,0.00014246,3]
[330689474,1719711071143,-500.0,0.00014246,3]
[330689475,1719711071154,-500.0,0.00014246,3]
[330689476,1719711071164,-500.0,0.00014246,3]
[330689477,1719711071174,-716.2,0.00014246,3]
[330689478,1719711071184,-761.79,0.00014246,3]
[330689479,1719711071193,-533.26,0.00014246,3]
[330689480,1719711071203,-519.14,0.00014246,3]
[330689481,1719711071212,-500.0,0.00014246,3]
[330689482,1719711071221,-911.02,0.00014246,3]
[330689483,1719711071231,-500.0,0.00014246,3]
[330689484,1719711071240,-663.53,0.00014246,3]
[330689485,1719711071249,-500.0,0.00014246,3]
[330689486,1719711071258,-500.98,0.00014246,3]
[330689487,1719711071268,-1050.04,0.00014246,3]
[330689488,1719711071278,-755.44,0.00014246,3]
[330689489,1719711071289,-627.64,0.00014246,3]
[330689490,1719711071298,-1768.33,0.00014246,3]
[330689491,1719711071308,-500.0,0.00014246,3]
[330689492,1719711071318,-500.0,0.00014246,3]
[330689493,1719711071334,-500.0,0.00014246,3]
[330689494,1719711071344,-500.0,0.00014246,3]
[330689495,1719711071353,-500.0,0.00014246,3]
[330689496,1719711071363,-644.01,0.00014246,3]
[330689497,1719711071372,-500.0,0.00014246,3]
[330689498,1719711071382,-889.76,0.00014246,3]
[330689499,1719711071391,-859.12,0.00014246,3]
[330689500,1719711071401,-500.0,0.00014246,3]
[330689501,1719711071412,-500.0,0.00014246,3]
[330689502,1719711071422,-500.0,0.00014246,3]
[330689503,1719711071431,-534.75,0.00014246,3]
[330689504,1719711071441,-500.0,0.00014246,3]
[330689505,1719711071450,-500.0,0.00014246,3]
[330689506,1719711071459,-500.0,0.00014246,3]
[330689507,1719711071469,-1138.76,0.00014246,3]
[330689508,1719711071479,-651.9,0.00014246,3]
[330689509,1719711071488,-500.0,0.00014246,3]
[330689510,1719711071498,-500.0,0.00014246,3]
[330689511,1719711071507,-578.29,0.00014246,3]
[330689512,1719711071517,-649.15,0.00014246,3]
[330689513,1719711071526,-721.45,0.00014246,3]
[330689514,1719711071535,-617.2,0.00014246,3]
[330689515,1719711071544,-500.0,0.00014246,3]
[330689516,1719711071554,-595.24,0.00014246,3]
[330689517,1719711071564,-500.0,0.00014246,3]
[330689518,1719711071574,-500.0,0.00014246,3]
[330689519,1719711071584,-551.62,0.00014246,3]
[330689520,1719711071594,-500.0,0.00014246,3]
[330689521,1719711071609,-500.0,0.00014246,3]
[330689522,1719711071619,-548.68,0.00014246,3]
[330689523,1719711071629,-500.0,0.00014246,3]
[330689524,1719711071639,-780.35,0.00014246,3]
[330689525,1719711071650,-164.7968302,0.00014246,3]
[330689526,1719711071665,-500.0,0.00014246,3]
[330689527,1719711071675,-500.0,0.00014246,3]
[330689528,1719711071685,-540.99,0.00014246,3]
[330689529,1719711071695,-649.88407399,0.00014246,3]
[330689530,1719711071704,-737.39,0.00014246,3]
[330689531,1719711071715,-235.02588291,0.00014246,3]
[330689532,1719711071725,-517.82,0.00014246,3]
[330689533,1719711071735,-500.0,0.00014246,3]
[330689534,1719711071744,-500.0,0.00014246,3]
[330689535,1719711071755,-500.0,0.00014246,3]
[330689536,1719711071764,-605.18,0.00014246,3]
[330689537,1719711071774,-500.0,0.00014246,3]
[330689538,1719711071784,-600.31,0.00014246,3]
[330689539,1719711071793,-880.06,0.00014246,3]
[330689540,1719711071803,-500.0,0.00014246,3]
[330689541,1719711071812,-500.0,0.00014246,3]
[330689542,1719711071822,-537.38,0.00014246,3]
[330689543,1719711071831,-1133.19,0.00014246,3]
[330689544,1719711071841,-772.55,0.00014246,3]
[330689545,1719711071850,-582.47,0.00014246,3]
[330689546,1719711071860,-500.0,0.00014246,3]
[330689547,1719711071869,-862.26,0.00014246,3]
[330689548,1719711071880,-510.91,0.00014246,3]
[330689549,1719711071890,-2714.67,0.00014246,3]
[330689550,1719711071900,-802.38,0.00014246,3]
[330689551,1719711071913,-500.0,0.00014246,3]
[330689552,1719711071922,-500.0,0.00014246,3]
[330689553,1719711071931,-521.73,0.00014246,3]
[330689554,1719711071941,-500.0,0.00014246,3]
[330689555,1719711071951,-500.0,0.00014246,3]
[330689556,1719711071960,-500.0,0.00014246,3]
[330689557,1719711071970,-2040.84,0.00014246,3]
[330689558,1719711071980,-500.0,0.00014246,3]
[330689559,1719711071989,-532.39,0.00014246,3]
[330689560,1719711072000,-1265.1,0.00014246,3]
[330689561,1719711072010,-500.0,0.00014246,3]
[330689562,1719711072020,-500.0,0.00014246,3]
[330689563,1719711072029,-500.0,0.00014246,3]
[330689564,1719711072039,-500.0,0.00014246,3]
[330689565,1719711072048,-500.0,0.00014246,3]
[330689566,1719711072058,-500.0,0.00014246,3]
[330689567,1719711072068,-952.19,0.00014246,3]
[330689568,1719711072077,-529.97,0.00014246,3]
[330689569,1719711072086,-588.51,0.00014246,3]
[330689570,1719711072095,-500.0,0.00014246,3]
[330689571,1719711072104,-691.24,0.00014246,3]
[330689572,1719711072114,-585.80539983,0.00014246,3]
[330689573,1719711072123,-660.79,0.00014246,3]
[330689574,1719711072133,-500.0,0.00014246,3]
[330689575,1719711072142,-671.71,0.00014246,3]
[330689576,1719711072151,-500.0,0.00014246,3]
[330689577,1719711072162,-500.0,0.00014246,3]
[330689578,1719711072171,-500.0,0.00014246,3]
[330689579,1719711072179,-500.0,0.00014246,3]
[330689580,1719711072189,-500.0,0.00014246,3]
[330689581,1719711072199,-548.68,0.00014246,3]
[330689582,1719711072208,-1531.98,0.00014246,3]
[330689583,1719711072217,-1034.28,0.00014246,3]
[330689584,1719711072226,-500.0,0.00014246,3]
[330689585,1719711072235,-588.83,0.00014246,3]
[330689586,1719711072244,-500.0,0.00014246,3]
[330689587,1719711072253,-538.51,0.00014246,3]
[330689588,1719711072263,-500.0,0.00014246,3]
[330689589,1719711072272,-500.0,0.00014246,3]
[330689590,1719711072281,-527.93,0.00014246,3]
[330689591,1719711072290,-511.23,0.00014246,3]
[330689592,1719711072299,-500.0,0.00014246,3]
[330689593,1719711072308,-500.0,0.00014246,3]
[330689594,1719711072317,-500.0,0.00014246,3]
[330689595,1719711072326,-599.85,0.00014246,3]
[330689596,1719711072335,-564.75,0.00014246,3]
[330689597,1719711072343,-500.0,0.00014246,3]
[330689598,1719711072353,-998.73,0.00014246,3]
[330689599,1719711072363,-879.24,0.00014246,3]
[330689600,1719711072372,-500.0,0.00014246,3]
[330689601,1719711072381,-1046.19,0.00014246,3]
[330689602,1719711072390,-1382.68,0.00014246,3]
[330689603,1719711072399,-464.42223015,0.00014246,3]
[330689604,1719711072411,-500.0,0.00014246,3]
[330689605,1719711072420,-500.0,0.00014246,3]
[330689606,1719711072429,-500.0,0.00014246,3]
[330689607,1719711072438,-500.0,0.00014246,3]
[330689608,1719711072448,-500.0,0.00014246,3]
[330689609,1719711072457,-500.0,0.00014246,3]
[330689610,1719711072466,-500.0,0.00014246,3]
[330689611,1719711072475,-1014.61,0.00014246,3]
[330689612,1719711072484,-500.0,0.00014246,3]
[330689613,1719711072493,-500.0,0.00014246,3]
[330689614,1719711072503,-500.0,0.00014246,3]
[330689615,1719711072512,-500.0,0.00014246,3]
[330689616,1719711072521,-500.0,0.00014246,3]
[330689617,1719711072531,-500.0,0.00014246,3]
[330689618,1719711072540,-500.0,0.00014246,3]
[330689619,1719711072549,-500.0,0.00014246,3]
[330689620,1719711072558,-1918.33,0.00014246,3]
[330689621,1719711072567,-672.21,0.00014246,3]
[330689622,1719711072576,-500.0,0.00014246,3]
[330689623,1719711072585,-1152.62,0.00014246,3]
[330689624,1719711072595,-500.0,0.00014246,3]
[330689625,1719711072607,-529.06022512,0.00014246,3]
[330689626,1719711072616,-1012.12,0.00014246,3]
[330689627,1719711072626,-500.0,0.00014246,3]
[330689628,1719711072635,-805.69,0.00014246,3]
[330689629,1719711072644,-728.19,0.00014246,3]
[330689630,1719711072656,-500.75,0.00014246,3]
[330689631,1719711072666,-500.0,0.00014246,3]
[330689632,1719711072675,-1145.72,0.00014246,3]
[330689633,1719711072690,-500.0,0.00014246,3]
[330689634,1719711072699,-636.14,0.00014246,3]
[330689635,1719711072709,-500.0,0.00014246,3]
[330689636,1719711072718,-959.16,0.00014246,3]
[330689637,1719711072727,-500.0,0.00014246,3]
[330689638,1719711072736,-536.15621264,0.00014246,3]
[330689639,1719711072745,-532.97,0.00014246,3]
[330689640,1719711072754,-726.22,0.00014246,3]
[330689641,1719711072764,-500.0,0.00014246,3]
[330689642,1719711072773,-796.05,0.00014246,3]
[330689643,1719711072780,-500.0,0.00014246,3]
[330689644,1719711072789,-347.98105271,0.00014246,3]
[330689645,1719711072798,-500.0,0.00014246,3]
[330689646,1719711073090,-500.0,0.00014246,3]
[330689647,1719711073101,-500.0,0.00014246,3]
[330689648,1719711073110,-500.0,0.00014246,3]
[330689649,1719711073120,-340.06038798,0.00014246,3]
[330689650,1719711073128,-500.0,0.00014246,3]
[330689651,1719711073137,-500.0,0.00014246,3]
[330689652,1719711073146,-1185.2,0.00014246,3]
[330689653,1719711073156,-500.0,0.00014246,3]
[330689654,1719711073165,-500.0,0.00014246,3]
[330689655,1719711073174,-583.84,0.00014246,3]
[330689656,1719711073183,-500.0,0.00014246,3]
[330689657,1719711073192,-296.18,0.00014246,3]
[330689658,1719711073202,-500.0,0.00014246,3]
[330689659,1719711073212,-2306.38,0.00014246,3]
[330689660,1719711073221,-712.33,0.00014246,3]
[330689661,1719711073230,-500.0,0.00014246,3]
[330689662,1719711073239,-500.0,0.00014246,3]
[330689663,1719711073248,-500.0,0.00014246,3]
[330689664,1719711073258,-500.0,0.00014246,3]
[330689665,1719711073267,-567.32,0.00014246,3]
[330689666,1719711073277,-1188.2,0.00014246,3]
[330689667,1719711073286,-500.0,0.00014246,3]
[330689668,1719711073295,-500.0,0.00014246,3]
[330689669,1719711073304,-500.0,0.00014246,3]
[330689670,1719711073313,-500.0,0.00014246,3]
[330689671,1719711073322,-500.0,0.00014246,3]
[330689672,1719711073331,-1071.25,0.00014246,3]
[330689673,1719711073340,-708.58,0.00014246,3]
[330689674,1719711073350,-791.93,0.00014246,3]
[330689675,1719711073360,-549.76,0.00014246,3]
[330689676,1719711073370,-500.0,0.00014246,3]
[330689677,1719711073380,-759.26,0.00014246,3]
[330689678,1719711073389,-538.9,0.00014246,3]
[330689679,1719711073399,-500.0,0.00014246,3]
[330689680,1719711073411,-500.0,0.00014246,3]
[330689681,1719711073421,-500.0,0.00014246,3]
[330689682,1719711073430,-500.0,0.00014246,3]
[330689683,1719711073439,-500.0,0.00014246,3]
[330689684,1719711073449,-500.0,0.00014246,3]
[330689685,1719711073459,-608.49,0.00014246,3]
[330689686,1719711073468,-660.44,0.00014246,3]
[330689687,1719711073477,-500.0,0.00014246,3]
[330689688,1719711073487,-2629.63,0.00014246,3]
[330689689,1719711073496,-500.0,0.00014246,3]
[330689690,1719711073506,-1298.08,0.00014246,3]
[330689691,1719711073515,-500.0,0.00014246,3]
[330689692,1719711073524,-721.44,0.00014246,3]
[330689693,1719711073534,-500.0,0.00014246,3]
[330689694,1719711073544,-551.41,0.00014246,3]
[330689695,1719711073553,-945.69,0.00014246,3]
[330689696,1719711073563,-500.0,0.00014246,3]
[330689697,1719711073572,-525.15,0.00014246,3]
[330689698,1719711073581,-1708.5,0.00014246,3]
[330689699,1719711073591,-1393.7,0.00014246,3]
[330689700,1719711073607,-781.98,0.00014246,3]
[330689701,1719711073616,-686.06,0.00014246,3]
[330689702,1719711073626,-500.0,0.00014246,3]
[330689703,1719711073636,-500.0,0.00014246,3]
[330689704,1719711073646,-500.0,0.00014246,3]
[330689705,1719711073656,-574.91,0.00014246,3]
[330689706,1719711073666,-1608.03,0.00014246,3]
[330689707,1719711073676,-500.0,0.00014246,3]
[330689708,1719711073687,-500.0,0.00014246,3]
[330689709,1719711073698,-679.33,0.00014246,3]
[330689710,1719711073708,-500.0,0.00014246,3]
[330689711,1719711073717,-500.0,0.00014246,3]
[330689712,1719711073727,-500.0,0.00014246,3]
[330689713,1719711073736,-500.0,0.00014246,3]
[330689714,1719711073746,-500.0,0.00014246,3]
[330689715,1719711073755,-500.0,0.00014246,3]
[330689716,1719711073765,-899.57,0.00014246,3]
[330689717,1719711073774,-4351.69,0.00014246,3]
[330689718,1719711073783,-590.76,0.00014246,3]
[330689719,1719711073793,-500.0,0.00014246,3]
[330689720,1719711073803,-500.0,0.00014246,3]
[330689721,1719711073813,-581.58,0.00014246,3]
[330689722,1719711073823,-500.0,0.00014246,3]
[330689723,1719711073833,-719.02,0.00014246,3]
[330689724,1719711073843,-500.0,0.00014246,3]
[330689725,1719711073852,-500.0,0.00014246,3]
[330689726,1719711073862,-680.73,0.00014246,3]
[330689727,1719711073872,-1466.68,0.00014246,3]
[330689728,1719711073882,-500.0,0.00014246,3]
[330689729,1719711073895,-1052.34,0.00014246,3]
[330689730,1719711073906,-8291.65,0.00014246,3]
[330689731,1719711073915,-500.0,0.00014246,3]
[330689732,1719711073925,-500.0,0.00014246,3]
[330689733,1719711073935,-500.0,0.00014246,3]
[330689734,1719711073945,-500.0,0.00014246,3]
[330689735,1719711073955,-500.0,0.00014246,3]
[330689736,1719711073964,-500.0,0.00014246,3]
[330689737,1719711073974,-857.65,0.00014246,3]
[330689738,1719711073984,-500.0,0.00014246,3]
[330689739,1719711073993,-733.86,0.00014246,3]